bitfinex-derivatives/quotes_ETHF0:USTF0_20251119
["timestamp","ask_amount","ask_price","bid_price","bid_amount"]
[1763530684372,3.2078,3007.5,3007.1,1.3058]
[1763530684580,3.2078,3007.5,3007.1,1.84491]
[1763530684978,0.53906,3007.4,3007.1,1.84491]
[1763530685180,0.53906,3007.4,3007.3,1.3058]
[1763530685476,3.2078,3007.5,3006.8,3.21088592]
[1763530685677,0.53913,3007.0,3006.8,3.21088592]
[1763530686479,0.792,3007.2,3006.8,3.21088592]
[1763530687082,0.53913,3007.0,3006.8,3.21088592]
[1763530687380,0.792,3007.2,3006.8,3.21088592]
[1763530687584,0.53914,3007.0,3006.8,3.21088592]
[1763530687878,1.3991,3006.9,3006.8,3.21088592]
[1763530688179,0.53914,3007.0,3006.8,3.21088592]
[1763530688575,1.3991,3006.9,3006.8,0.00308592]
[1763530689281,0.53914,3007.0,3006.8,0.00308592]
[1763530689982,0.53908,3007.3,3006.8,0.00308592]
[1763530690276,0.53908,3007.3,3007.0,0.53912]
[1763530690477,0.53908,3007.4,3007.0,0.53913]
[1763530690677,3.2078,3007.6,3007.5,1.3058]
[1763530691085,3.2078,3007.6,3006.8,3.21088592]
[1763530691086,3.2078,3007.6,3007.2,0.53909]
[1763530691274,3.74683,3007.6,3006.8,3.21088592]
[1763530691470,0.53905,3007.5,3006.8,3.21088592]
[1763530691681,0.53905,3007.5,3007.2,0.53909]
[1763530691880,0.53906,3007.4,3006.9,0.53915]
[1763530692083,3.2078,3007.6,3007.3,1.3058]
[1763530692284,3.21278397,3008.0,3007.8,0.53898]
[1763530692479,3.21278397,3008.0,3007.9,1.3058]
[1763530692982,3.21278397,3008.0,3007.2,3.6409]
[1763530693175,1.3991,3007.1,3006.8,0.00308592]
[1763530693380,3.2078,3007.1,3006.8,0.00308592]
[1763530693586,0.53913,3007.0,3006.8,0.00308592]
[1763530695484,3.2078,3007.1,3006.8,0.00308592]
[1763530695787,0.53914,3007.0,3006.8,0.00308592]
[1763530696186,3.2078,3007.1,3007.0,1.3058]
[1763530696580,3.2078,3007.1,3006.8,0.00308592]
[1763530696782,0.53913,3007.0,3006.8,0.00308592]
[1763530697178,3.2078,3007.1,3006.8,0.00308592]
[1763530697383,0.53913,3007.0,3006.8,0.00308592]
[1763530697787,1.3991,3006.9,3006.8,0.00308592]
[1763530697983,0.53913,3007.0,3006.8,0.00308592]
[1763530699388,3.74693,3007.1,3006.8,0.54225592]
[1763530699592,0.792,3007.2,3006.8,0.54225592]
[1763530700392,3.2078,3007.5,3006.8,0.00308592]
[1763530700592,0.5391,3007.2,3007.1,1.3058]
[1763530700993,0.53914,3007.0,3006.8,0.00308592]
[1763530701299,0.53911,3007.2,3006.9,0.53915]
[1763530701491,3.2078,3007.5,3007.1,1.3058]
[1763530701897,3.2078,3007.5,3006.8,2.3781748]
[1763530702100,3.2078,3007.1,3006.8,0.00308592]
[1763530702393,1.3991,3006.9,3006.8,0.00308592]
[1763530703196,1.75284,3006.4,3006.3,0.03326403]
[1763530703397,1.35328153,3006.4,3006.3,0.03326403]
[1763530704095,0.7783,3006.6,3006.3,0.57252403]
[1763530704297,0.53921,3006.6,3006.3,2.41254326]
[1763530704489,3.2078,3007.0,3006.3,2.41254326]
[1763530704801,3.2078,3007.0,3006.3,3.24525438]
[1763530704994,3.2078,3007.0,3006.4,2.37508888]
[1763530705200,3.2078,3007.0,3006.9,1.3421]
[1763530705698,3.2078,3007.5,3007.3,0.53907]
[1763530705894,3.74678,3007.9,3007.5,0.53904]
[1763530706093,3.2078,3007.9,3007.2,6.37483316]
[1763530706489,1.2136,3007.6,3007.2,2.39023316]
[1763530706797,3.2078,3007.9,3007.8,1.3421]
[1763530707103,3.2078,3007.9,3007.6,0.53902]
[1763530707293,3.2078,3007.9,3007.7,0.539]
[1763530707499,3.2078,3007.9,3007.8,1.3421]
[1763530709290,1.2163,3007.2,3007.1,2.9544433]
[1763530709504,0.53916,3006.9,3006.7,2.9544433]
[1763530709694,0.53921,3006.6,3006.4,3.2078]
[1763530709894,0.53924,3006.4,3006.3,0.03745438]
[1763530710998,3.74704,3006.4,3006.3,0.03745438]
[1763530711893,0.7747,3007.2,3006.3,0.03745438]
[1763530711894,0.53921,3006.6,3006.3,0.03745438]
[1763530712093,0.53923,3006.5,3006.3,0.03745438]
[1763530712293,1.31393,3006.5,3006.3,0.03745438]
[1763530712800,0.7747,3006.5,3006.3,0.03745438]
[1763530713097,3.2078,3006.4,3004.7,2.9544433]
[1763530713299,0.00498397,3005.9,3005.2,3.2078]
[1763530713504,3.2078,3005.6,3005.0,8.243]
[1763530714002,3.21066281,3005.6,3005.0,0.00288243]
[1763530714201,0.53943,3005.4,3005.0,0.00288243]
[1763530714396,0.53944,3005.3,3005.0,0.00288243]
[1763530714597,0.53947,3005.1,3005.0,0.00288243]
[1763530714903,3.74727,3005.2,3005.0,0.00288243]
[1763530715102,3.2078,3005.2,3005.0,0.00288243]
[1763530715310,3.74727,3005.2,3005.0,0.00288243]
[1763530715499,0.7747,3005.1,3005.0,0.00288243]
[1763530715702,0.53949,3005.0,3004.9,0.00498397]
[1763530716101,3.2078,3005.2,3004.9,0.00498397]
[1763530716402,3.2078,3005.2,3004.9,0.54448397]
[1763530716604,3.2078,3005.2,3005.0,0.53948]
[1763530716906,0.00498397,3005.5,3005.4,0.53942]
[1763530717110,0.00498397,3005.5,3005.1,9.9979249]
[1763530717301,0.00498397,3005.5,3005.0,3.21012651]
[1763530717501,0.54439397,3005.5,3005.0,3.74960651]
[1763530717700,0.00498397,3005.5,3005.1,0.53947]
[1763530718199,0.00498397,3005.5,3005.0,3.21012651]
[1763530718500,0.00498397,3005.5,3005.3,0.53943]
[1763530718706,0.00498397,3005.5,3005.1,0.53946]
[1763530718896,0.00498397,3005.5,3005.0,3.21012651]
[1763530719405,0.00498397,3005.5,3005.4,1.7549249]
[1763530719604,0.53942,3005.4,3005.0,3.21012651]
[1763530720308,0.00498397,3005.5,3005.0,3.21012651]
[1763530720504,0.53944,3005.3,3005.0,3.21012651]
[1763530720700,0.00498397,3005.5,3005.0,3.21012651]
[1763530721210,0.00498397,3005.5,3005.3,0.53943]
[1763530722406,3.2078,3006.1,3005.5,1.2676]
[1763530722709,3.2078,3006.1,3005.9,0.53932]
[1763530722905,3.2078,3006.1,3005.8,1.7549249]
[1763530723204,3.2078,3006.1,3005.9,0.53932]
[1763530723404,3.21153459,3006.1,3005.9,0.53932]
[1763530723707,0.00498397,3006.3,3006.1,0.53929]
[1763530723908,3.2078,3007.1,3006.2,4.9627249]
[1763530724108,3.2078,3007.1,3006.4,1.7549249]
[1763530724298,3.2078,3007.1,3006.3,0.53924]
[1763530724704,0.53919,3006.7,3006.3,0.53924]
[1763530724902,0.00498397,3006.8,3006.2,3.21278397]
[1763530725303,0.00498397,3006.8,3006.6,0.5392]
[1763530725705,0.00498397,3006.8,3006.4,1.7549249]
[1763530725902,3.2078,3006.6,3006.4,1.7549249]
[1763530726207,3.2078,3006.6,3006.2,3.21278397]
[1763530726208,1.2163,3006.3,3006.2,3.21278397]
[1763530726609,3.2078,3006.6,3006.2,3.75204397]
[1763530726910,0.53922,3006.5,3006.2,3.21278397]
[1763530727109,0.53922,3006.5,3006.2,3.75205397]
[1763530727412,3.2078,3006.6,3006.2,3.75205397]
[1763530727613,3.74701,3006.6,3006.2,3.21278397]
[1763530727817,3.2078,3006.6,3006.2,3.21278397]
[1763530728025,0.00498397,3006.8,3006.7,1.2676]
[1763530729406,3.2078,3007.5,3006.6,3.9929]
[1763530729708,0.7747,3007.9,3007.5,0.53904]
[1763530729709,4.52147,3007.9,3007.5,0.53904]
[1763530729913,3.9825,3007.9,3007.5,0.53904]
[1763530730107,3.9825,3007.9,3007.6,0.53902]
[1763530730515,4.52483911,3007.9,3007.6,0.00314395]
[1763530730813,1.2163,3007.7,3007.6,0.00314395]
[1763530731110,0.53915,3006.9,3006.6,3.2078]
[1763530731322,0.53917,3006.8,3006.6,3.2078]
[1763530731504,1.2163,3006.3,3005.7,3.2078]
[1763530731705,4.4241,3006.3,3005.7,3.2078]
[1763530731912,4.4241,3006.3,3006.2,0.00765304]
[1763530732109,1.31890397,3006.6,3006.2,0.00765304]
[1763530732306,1.2163,3006.3,3006.2,0.00765304]
[1763530732712,0.00498397,3006.6,3006.4,0.53923]
[1763530732913,0.00498397,3006.6,3006.3,1.7549249]
[1763530733114,0.00498397,3006.6,3006.2,0.54691304]
[1763530733115,0.54419397,3006.6,3006.2,0.54691304]
[1763530733315,1.31889397,3006.6,3006.2,0.00765304]
[1763530733513,1.2163,3006.3,3006.2,0.00765304]
[1763530734112,0.54419397,3006.6,3006.2,0.00765304]
[1763530734318,0.00498397,3006.6,3006.5,3.2078]
[1763530734503,1.99598397,3006.6,3006.5,3.2078]
[1763530734914,1.75556,3006.3,3006.2,0.00765304]
[1763530736316,0.00498397,3006.6,3006.3,1.2676]
[1763530736514,0.00498397,3006.6,3006.4,0.53924]
[1763530737114,0.54419397,3006.6,3006.3,0.53925]
[1763530737413,0.00498397,3006.6,3006.2,1.76257794]
[1763530737713,0.00498397,3006.6,3006.5,4.4754]
[1763530738108,0.00498397,3006.6,3006.5,1.2676]
[1763530738303,0.00498397,3006.6,3006.2,1.76257794]
[1763530738507,0.54419397,3006.6,3006.2,0.00765304]
[1763530738708,0.00498397,3006.6,3006.2,0.00765304]
[1763530738912,0.00498397,3006.6,3006.2,1.76257794]
[1763530739217,0.00498397,3006.6,3006.5,4.4033]
[1763530739411,0.00498397,3006.6,3006.5,3.2078]
[1763530739718,0.00498397,3006.6,3006.5,4.4033]
[1763530739924,0.7747,3007.2,3006.5,4.4033]
[1763530739925,0.5391,3007.2,3006.7,0.53917]
[1763530740215,1.68663,3007.0,3006.9,3.2078]
[1763530740422,1.1475,3007.0,3006.4,0.53923]
[1763530740622,0.53916,3006.9,3006.5,0.53922]
[1763530740811,0.53918,3006.8,3006.3,4.9627249]
[1763530741215,0.53917,3006.8,3006.3,4.9627249]
[1763530741415,0.00498397,3007.0,3006.7,3.2078]
[1763530741717,0.00498397,3007.0,3006.7,3.74698]
[1763530741917,0.54412397,3007.0,3006.7,3.2078]
[1763530742120,0.53916,3006.9,3006.7,3.2078]
[1763530742410,1.1475,3006.8,3006.7,3.2078]
[1763530743225,0.00498397,3007.0,3006.3,3.2078]
[1763530743716,0.53923,3006.5,3006.3,3.2078]
[1763530744424,1.1475,3006.4,3006.3,3.2078]
[1763530744814,3.2078,3006.8,3006.3,3.74705]
[1763530745018,0.53922,3006.5,3006.4,1.1955]
[1763530745813,1.1475,3006.4,3006.3,3.2078]
[1763530746015,1.68676,3006.3,3006.2,0.00765304]
[1763530746820,3.2078,3006.4,3006.2,0.00765304]
[1763530747018,0.53926,3006.3,3006.2,0.00765304]
[1763530747214,0.53924,3006.4,3006.2,3.21545304]
[1763530747614,3.21278397,3007.0,3006.3,1.1955]
[1763530748026,0.53923,3006.5,3006.3,1.1955]
[1763530749027,0.53926,3006.3,3006.2,3.21545304]
[1763530749719,1.68676,3006.3,3006.2,0.00765304]
[1763530749923,0.53926,3006.3,3006.2,4.41095304]
[1763530750725,0.53923,3006.5,3006.2,4.41095304]
[1763530751031,0.53923,3006.5,3006.4,1.1955]
[1763530751236,0.00498397,3007.0,3006.4,1.1955]
[1763530751531,0.00498397,3007.0,3006.9,1.1955]
[1763530751732,3.2078,3007.7,3007.4,0.53905]
[1763530751928,0.54233911,3007.9,3007.5,2.2939649]
[1763530752125,0.53901,3007.7,3007.3,11.4478]
[1763530752436,0.00335911,3007.9,3007.4,0.53906]
[1763530752626,0.53901,3007.7,3007.3,11.4478]
[1763530753127,0.53901,3007.7,3007.3,3.2078]
[1763530753431,0.54217963,3007.8,3007.3,11.4478]
[1763530753628,0.00318963,3007.8,3007.7,1.1955]
[1763530754126,0.53881,3008.8,3008.6,1.1955]
[1763530754531,0.53878,3009.0,3008.6,1.1955]
[1763530754736,0.53882,3008.8,3008.6,1.1955]
[1763530755123,0.00357842,3008.8,3008.7,1.1955]
[1763530755627,0.6825,3010.2,3009.0,1.8887]
[1763530755628,3.2078,3009.7,3009.0,1.8887]
[1763530755829,3.2078,3009.9,3009.0,3.901]
[1763530756036,0.53871,3009.4,3008.9,3.2078]
[1763530756234,0.53871,3009.4,3009.3,3.2078]
[1763530756531,0.53871,3009.4,3008.9,3.2078]
[1763530756731,0.53872,3009.3,3008.6,0.00309277]
[1763530756932,0.5417053,3009.4,3008.8,1.7549249]
[1763530757130,0.53877,3009.1,3008.8,1.7549249]
[1763530757331,0.53877,3009.1,3008.6,0.54193277]
[1763530757533,0.53877,3009.1,3009.0,1.1955]
[1763530757730,0.0029853,3009.4,3009.3,1.1955]
[1763530758239,3.74613,3011.5,3010.7,0.53846]
[1763530758542,0.53832,3011.6,3011.1,3.2078]
[1763530758731,3.2078,3011.9,3011.3,1.7549249]
[1763530758932,3.2078,3012.4,3011.8,1.7549249]
[1763530759132,0.0032107,3012.4,3012.3,1.7549249]
[1763530759638,3.2078,3013.8,3012.9,0.53808]
[1763530759841,3.2078,3014.0,3013.1,3.2078]
[1763530760338,3.74568,3014.0,3013.2,0.00498397]
[1763530760637,0.53795,3013.7,3013.2,0.00498397]
[1763530760831,3.21121323,3014.0,3013.2,0.00498397]
[1763530761030,3.2078,3013.5,3013.2,0.00498397]
[1763530761229,0.53794,3013.7,3013.2,3.21278397]
[1763530761634,3.7457,3013.9,3013.2,3.21278397]
[1763530761944,0.53799,3013.4,3013.2,0.00498397]
[1763530763439,3.74579,3013.4,3013.2,0.00498397]
[1763530764134,0.53812,3012.7,3012.4,3.2078]
[1763530764335,0.53811,3012.8,3012.4,3.2078]
[1763530764531,3.2078,3013.4,3012.4,3.2078]
[1763530764840,0.53814,3012.6,3012.4,3.2078]
[1763530765527,0.53817,3012.4,3012.2,0.00498397]
[1763530766736,3.2078,3012.3,3011.8,0.00342112]
[1763530766936,3.2078,3011.9,3011.0,3.2078]
[1763530767143,3.2078,3011.9,3009.0,11.967]
[1763530767144,0.7225,3010.7,3009.1,3.2078]
[1763530767439,3.2078,3009.8,3009.0,1.7549249]
[1763530767837,3.2078,3009.4,3009.1,0.00498397]
[1763530768432,0.53874,3009.2,3009.1,0.00498397]
[1763530769439,0.53874,3009.2,3009.0,0.00282308]
[1763530769440,6.0,3009.2,3007.7,3.2078]
[1763530769738,0.53897,3007.9,3007.7,3.2078]
[1763530769942,0.53903,3007.6,3006.5,3.07611132]
[1763530770141,3.2078,3007.4,3007.0,3.2078]
[1763530770337,0.00309431,3007.4,3007.0,3.21054397]
[1763530771646,3.2078,3008.0,3007.2,0.6789]
[1763530771843,3.2078,3008.0,3007.4,3.2078]
[1763530772750,3.21519242,3008.0,3007.4,3.2078]
[1763530772948,0.00739242,3008.0,3007.4,3.2078]
[1763530773345,3.2078,3008.4,3008.0,0.53893]
[1763530773543,3.2078,3008.4,3007.8,3.74678]
[1763530773745,0.53892,3008.2,3007.5,3.86]
[1763530773951,0.53892,3008.2,3007.4,3.2078]
[1763530774449,0.00498397,3008.1,3007.7,0.539]
[1763530774850,0.00498397,3008.1,3007.7,0.53899]
[1763530775244,0.00498397,3008.1,3007.6,0.53901]
[1763530775445,0.53898,3007.9,3007.4,3.2078]
[1763530775645,3.2078,3008.0,3007.4,3.2078]
[1763530776051,0.54392397,3008.1,3007.5,0.53903]
[1763530776249,0.00498397,3008.1,3007.7,0.53899]
[1763530776947,0.00498397,3008.1,3007.4,3.2078]
[1763530777152,0.54392397,3008.1,3007.4,3.2078]
[1763530777348,0.00498397,3008.1,3007.6,0.53902]
[1763530777552,0.00498397,3008.1,3007.7,0.539]
[1763530778146,0.00498397,3008.1,3007.9,0.53896]
[1763530778441,0.6548,3008.8,3007.9,0.53896]
[1763530778442,3.2078,3008.8,3008.4,0.53887]
[1763530778642,3.2078,3008.8,3008.0,0.6789]
[1763530778643,3.2078,3008.8,3008.3,3.2078]
[1763530778844,3.2078,3008.8,3008.5,0.53885]
[1763530779244,3.74654,3009.2,3008.3,3.2078]
[1763530779440,3.74654,3009.2,3008.0,0.6789]
[1763530779441,0.00271239,3009.2,3008.9,3.2078]
[1763530779641,3.2078,3009.8,3009.4,0.53869]
[1763530779840,0.53869,3009.5,3008.9,3.2078]
[1763530780046,3.2078,3009.8,3009.2,0.53873]
[1763530780250,3.2078,3009.8,3008.9,3.2078]
[1763530780553,3.2078,3009.0,3008.4,3.21278397]
[1763530780754,0.00422071,3009.0,3008.4,3.21673554]
[1763530781152,0.00422071,3009.0,3008.8,0.5388]
[1763530781348,0.00422071,3009.0,3008.4,3.21673554]
[1763530781349,0.00422071,3009.0,3008.6,1.21773]
[1763530781554,3.21202071,3009.0,3008.4,0.00893554]
[1763530781754,0.53893,3008.2,3007.7,3.2078]
[1763530781953,3.2078,3008.1,3007.7,3.2078]
[1763530782154,3.2078,3008.5,3007.9,0.53896]
[1763530782357,0.53891,3008.3,3007.7,3.74679]
[1763530782556,3.2078,3008.5,3007.7,3.74679]
[1763530782754,0.53892,3008.3,3007.8,0.54396397]
[1763530783055,0.5389,3008.3,3007.9,0.53896]
[1763530783257,0.00498397,3008.4,3008.0,0.53895]
[1763530783548,0.53892,3008.2,3007.8,0.00498397]
[1763530783752,0.53894,3008.1,3007.8,0.00498397]
[1763530783942,0.5389,3008.3,3007.8,0.00498397]
[1763530784146,0.53896,3008.0,3007.8,0.00498397]
[1763530785252,3.2078,3008.1,3007.8,0.00498397]
[1763530785455,0.53897,3007.9,3007.8,0.00498397]
[1763530786453,0.53896,3008.0,3007.8,0.00498397]
[1763530787248,0.6548,3007.9,3007.8,0.00498397]
[1763530787448,0.53903,3007.6,3006.8,3.74696]
[1763530787643,3.2078,3007.5,3007.1,0.53911]
[1763530788253,3.74684,3007.5,3007.1,0.53911]
[1763530788453,0.53904,3007.5,3007.1,0.54338791]
[1763530788658,3.2078,3007.9,3007.6,0.53901]
[1763530789159,3.2078,3007.9,3007.7,0.539]
[1763530789561,3.21278397,3008.4,3008.2,0.5389]
[1763530789754,3.21278397,3008.4,3007.8,3.2078]
[1763530789949,0.5389,3008.3,3007.8,3.2078]
[1763530790162,3.2078,3008.0,3007.5,5.762]
[1763530790353,0.53892,3008.2,3007.5,5.762]
[1763530790657,0.53894,3008.1,3007.4,3.2078]
[1763530790860,0.53894,3008.1,3007.7,0.539]
[1763530791155,3.2078,3007.9,3007.6,0.53902]
[1763530791348,0.53901,3007.7,3007.4,3.2078]
[1763530791554,0.53903,3007.6,3007.4,3.2078]
[1763530791752,3.2078,3007.9,3007.4,3.74685]
[1763530791956,0.53901,3007.7,3007.4,3.2078]
[1763530792351,0.53899,3007.8,3007.4,3.74685]
[1763530792554,0.53904,3007.6,3007.4,3.2078]
[1763530792764,0.53901,3007.7,3007.4,3.2078]
[1763530793362,3.74677,3007.9,3007.4,3.74686]
[1763530793564,0.539,3007.8,3007.4,3.74686]
[1763530793769,3.2078,3007.9,3007.5,0.53904]
[1763530793962,3.2078,3007.9,3007.4,3.2078]
[1763530794265,3.2078,3007.9,3007.5,0.53904]
[1763530794768,3.2078,3007.9,3007.7,0.53899]
[1763530794966,0.00498397,3008.4,3008.2,0.53891]
[1763530795661,0.00498397,3008.4,3008.2,3.74671]
[1763530796067,3.2078,3009.3,3008.9,0.53879]
[1763530796461,0.53874,3009.2,3008.6,0.6789]
[1763530796965,0.53885,3008.6,3008.1,8.237]
[1763530797154,0.53884,3008.6,3008.0,0.00498397]
[1763530797358,3.2078,3008.5,3008.0,0.00498397]
[1763530797553,0.54382397,3008.7,3008.3,0.53889]
[1763530798164,0.00498397,3008.7,3008.4,0.53887]
[1763530798365,0.53885,3008.6,3008.2,3.2078]
[1763530798559,3.2078,3008.5,3008.3,0.53889]
[1763530798767,0.54382397,3008.7,3008.0,0.00498397]
[1763530798974,0.53886,3008.6,3008.0,0.00498397]
[1763530799171,0.53887,3008.5,3008.0,0.00498397]
[1763530799379,0.00498397,3008.7,3008.0,0.00498397]
[1763530799380,3.2078,3008.4,3008.0,0.00498397]
[1763530799571,0.53892,3008.2,3008.0,0.00498397]
[1763530800984,3.2078,3008.4,3007.3,0.53906]
[1763530801283,3.2078,3007.7,3007.2,0.6858]
[1763530801684,3.2078,3007.3,3007.1,0.00427791]
[1763530802982,3.2078,3007.3,3007.1,0.54338791]
[1763530803685,3.2078,3007.3,3007.1,0.00427791]
[1763530803988,3.2078,3007.3,3007.1,0.54338791]
[1763530804183,3.2078,3007.3,3007.1,0.00427791]
[1763530804383,3.2078,3007.3,3007.1,0.54338791]
[1763530804785,2.88260317,3007.3,3007.2,0.6858]
[1763530805086,3.2078,3008.1,3007.7,0.539]
[1763530805286,3.2078,3008.1,3007.8,0.53898]
[1763530805788,3.2078,3008.1,3007.9,0.53896]
[1763530805984,3.2078,3008.5,3008.3,0.53889]
[1763530806384,3.2078,3008.5,3007.8,3.2078]
[1763530806686,3.74671,3008.3,3007.6,3.2078]
[1763530806886,0.53892,3008.2,3007.6,3.2078]
[1763530807088,0.53894,3008.1,3007.7,0.539]
[1763530807280,3.74679,3007.9,3007.2,3.8936]
[1763530807582,0.53899,3007.8,3007.2,3.8936]
[1763530807782,0.53902,3007.7,3007.3,0.53907]
[1763530808176,3.2078,3007.9,3007.2,3.8936]
[1763530808379,0.53903,3007.6,3007.2,3.74689]
[1763530808776,4.37917,3007.9,3007.4,0.53905]
[1763530808992,0.53899,3007.8,3007.4,0.53905]
[1763530809383,3.8402,3007.9,3007.2,3.2078]
[1763530809384,3.2078,3007.9,3007.2,3.2078]
[1763530809588,3.74677,3007.9,3007.5,0.53902]
[1763530809980,3.2078,3007.9,3007.5,0.53902]
[1763530810186,3.2078,3007.9,3007.2,5.86440127]
[1763530810491,3.2078,3007.9,3007.6,0.53902]
[1763530810688,3.74677,3007.9,3007.6,0.53902]
[1763530810994,3.74677,3007.9,3007.5,0.53904]
[1763530810995,3.2078,3007.9,3007.5,0.53904]
[1763530811487,0.53904,3007.6,3007.2,3.2078]
[1763530811691,3.8402,3007.9,3007.3,0.53908]
[1763530811887,3.8402,3007.9,3007.2,3.2078]
[1763530811888,0.53899,3007.8,3007.4,0.53904]
[1763530812088,0.53901,3007.7,3007.3,0.53907]
[1763530812390,0.53901,3007.7,3007.2,3.2078]
[1763530812593,0.53901,3007.7,3007.4,0.0455453]
[1763530812890,3.2078,3007.9,3007.4,0.0455453]
[1763530813482,3.2078,3007.9,3007.2,3.2078]
[1763530813683,3.2078,3007.9,3007.6,0.0455453]
[1763530814295,0.53896,3008.0,3007.6,3.2533453]
[1763530814483,1.1444,3007.7,3007.6,0.0455453]
[1763530814684,0.6324,3007.8,3007.4,0.53906]
[1763530814892,3.2078,3008.0,3007.2,3.74688]
[1763530815092,0.53902,3007.7,3007.4,0.53906]
[1763530815493,0.53902,3007.7,3007.4,0.53905]
[1763530815692,3.2078,3008.0,3007.2,3.2078]
[1763530815990,3.2078,3008.0,3007.2,3.5622]
[1763530816695,3.2078,3008.0,3007.8,0.53899]
[1763530817283,3.2078,3008.4,3008.2,0.53891]
[1763530817489,3.2078,3008.4,3008.3,1.133]
[1763530817794,2.80849858,3008.4,3008.3,1.133]
[1763530817991,2.80849858,3008.4,3007.8,0.6858]
[1763530818183,2.80849858,3008.4,3007.9,8.237]
[1763530818390,0.5389,3008.3,3007.9,0.53896]
[1763530818587,0.53891,3008.3,3007.3,11.4448]
[1763530818787,0.53896,3008.0,3007.7,3.2078]
[1763530818986,0.53896,3008.0,3007.7,3.7468]
[1763530819184,3.8402,3008.4,3007.8,0.53898]
[1763530819385,3.8402,3008.4,3007.7,3.2078]
[1763530819587,3.2078,3008.4,3008.2,0.53891]
[1763530819788,3.2078,3008.4,3008.3,1.133]
[1763530820395,3.2078,3008.4,3007.8,0.6858]
[1763530821196,3.2078,3008.4,3008.1,0.53893]
[1763530821594,3.2078,3008.4,3008.2,0.53891]
[1763530822000,3.2078,3008.4,3007.8,0.6858]
[1763530822492,0.5389,3008.3,3007.9,0.53896]
[1763530822688,0.5389,3008.3,3007.9,0.53897]
[1763530822895,3.8505,3008.4,3007.7,11.4448]
[1763530823200,0.53894,3008.1,3007.7,11.9838]
[1763530823602,0.53894,3008.1,3007.8,0.53899]
[1763530823996,3.8505,3008.4,3007.8,0.53899]
[1763530824494,3.8505,3008.4,3007.7,11.4448]
[1763530824700,0.5389,3008.3,3007.9,0.53897]
[1763530825097,3.2078,3008.4,3007.7,11.4448]
[1763530825297,0.53901,3007.7,3007.3,5.59331687]
[1763530825497,0.53903,3007.6,3007.3,3.2078]
[1763530825700,0.6427,3007.8,3007.3,3.2078]
[1763530825701,0.53906,3007.4,3007.3,3.2078]
[1763530825900,0.53903,3007.6,3007.3,3.2078]
[1763530826201,0.53904,3007.5,3007.3,3.2078]
[1763530826394,3.2078,3007.4,3007.1,2.38979478]
[1763530826594,1.417,3007.2,3007.1,0.00427791]
[1763530826800,3.2078,3007.4,3007.1,0.00427791]
[1763530827002,1.0439,3007.2,3007.1,0.00427791]
[1763530827194,4.8944,3007.2,3007.1,0.00427791]
[1763530827707,4.49489385,3007.2,3007.1,0.00427791]
[1763530828200,0.9694,3007.0,3006.5,3.2078]
[1763530828998,0.9694,3007.0,3006.9,0.00734342]
[1763530829501,3.2078,3007.2,3006.9,0.00734342]
[1763530829694,3.2078,3007.2,3006.9,0.54649342]
[1763530830092,3.7469,3007.2,3006.9,0.00734342]
[1763530830499,0.6427,3007.8,3006.9,3.75428342]
[1763530830500,3.2078,3007.6,3006.9,3.75428342]
[1763530831009,1.50853,3007.0,3006.9,0.00734342]
[1763530831804,0.9694,3007.0,3006.9,0.00734342]
[1763530831998,3.2078,3006.6,3005.2,2.90464172]
[1763530832190,3.2078,3005.3,3004.8,0.6323]
[1763530832392,3.2078,3004.9,3004.8,0.6323]
[1763530832899,3.21152991,3004.9,3004.8,0.63559903]
[1763530834599,9.21152991,3004.9,3004.5,0.00498397]
[1763530834903,9.21152991,3004.9,3003.0,0.6372]
[1763530834904,0.53972,3003.8,3003.0,0.6372]
[1763530835107,3.2078,3003.7,3003.0,0.6372]
[1763530835704,3.2078,3003.7,3003.6,0.63995925]
[1763530837003,3.2078,3003.7,3003.6,0.00275925]
[1763530838305,3.0537282,3003.7,3003.6,0.00275925]
[1763530839310,3.2078,3004.1,3003.7,0.6372]
[1763530839510,3.2078,3004.1,3004.0,2.29668215]
[1763530839904,3.2078,3004.1,3003.7,0.6372]
[1763530840413,3.2078,3004.1,3003.7,1.17692]
[1763530840816,3.2078,3004.1,3003.7,0.6372]
[1763530841112,0.53968,3004.0,3003.7,0.6372]
[1763530841413,3.2078,3004.1,3003.6,0.00275925]
[1763530841716,0.53972,3003.8,3003.6,0.63995925]
[1763530842012,0.53971,3003.8,3003.6,0.63995925]
[1763530842209,3.2078,3004.1,3003.7,0.53972]
[1763530842513,3.2078,3004.1,3003.6,0.63995925]
[1763530842514,0.5397,3003.9,3003.6,0.63995925]
[1763530843116,3.74747,3004.1,3003.6,0.63995925]
[1763530843416,3.74746,3004.1,3003.6,1.17969925]
[1763530843612,0.53969,3003.9,3003.6,0.63995925]
[1763530843813,3.2078,3003.7,3002.6,0.53991]
[1763530844005,3.2078,3002.8,3002.2,3.2078]
[1763530844312,3.74769,3002.8,3001.8,0.6372]
[1763530844513,3.2078,3002.8,3001.8,0.6372]
[1763530844709,0.00499243,3002.6,3002.5,0.53994]
[1763530844903,0.00863541,3002.6,3002.5,2.29695215]
[1763530845516,3.2078,3003.4,3003.0,0.6372]
[1763530845706,0.5398,3003.3,3003.0,0.6372]
[1763530846106,3.2078,3003.4,3002.4,0.6372]
[1763530846303,3.2078,3003.3,3002.6,0.53992]
[1763530846503,0.53985,3003.0,3002.6,0.00499243]
[1763530846702,3.21648628,3003.3,3002.6,0.00499243]
[1763530846908,3.75628628,3003.3,3002.8,0.53988]
[1763530847103,3.75628628,3003.3,3002.9,0.53986]
[1763530847104,3.21648628,3003.3,3002.9,0.53986]
[1763530847304,3.2078,3003.1,3003.0,0.6372]
[1763530847712,3.2078,3003.1,3002.6,0.00499243]
[1763530847920,0.53988,3002.9,3002.6,0.00499243]
[1763530848320,3.2078,3003.1,3003.0,0.6372]
[1763530848914,9.2078,3003.1,3002.6,0.00499243]
[1763530849118,0.00868628,3003.3,3002.6,0.00499243]
[1763530849119,3.2078,3002.7,3002.6,0.00499243]
[1763530852215,3.7477,3002.7,3002.6,0.00499243]